fUST/lending_fUST_20240626
["ID","MTS","AMOUNT","RATE_DAILY","PERIOD"]
[330436211,1719402650101,-500.0,0.00016712,2]
[330436212,1719402650110,-500.0,0.00016712,2]
[330436213,1719402650119,-560.68,0.00016712,2]
[330436214,1719402650129,-500.0,0.00016712,2]
[330436215,1719402650138,-500.0,0.00016712,2]
[330436216,1719402650147,-500.0,0.00016712,2]
[330436217,1719402650156,-645.3,0.00016712,2]
[330436218,1719402650166,-812.54,0.00016712,2]
[330436219,1719402650175,-193.5,0.00016712,2]
[330436220,1719402650184,-500.0,0.00016712,2]
[330436221,1719402650193,-500.0,0.00016712,2]
[330436222,1719402650203,-2859.63,0.00016712,2]
[330436223,1719402650212,-1390.74,0.00016712,2]
[330436224,1719402650222,-524.14,0.00016712,2]
[330436225,1719402650232,-5402.31,0.00016712,2]
[330436226,1719402650242,-1480.8,0.00016712,2]
[330436227,1719402650250,-500.0,0.00016712,2]
[330436228,1719402650259,-500.0,0.00016712,2]
[330436229,1719402650269,-702.37,0.00016712,2]
[330436230,1719402650278,-2281.43,0.00016712,2]
[330436231,1719402650287,-12137.58,0.00016712,2]
[330436232,1719402650297,-500.0,0.00016712,2]
[330436233,1719402650307,-500.0,0.00016712,2]
[330436234,1719402650316,-4396.45,0.00016712,2]
[330436235,1719402650326,-1713.01,0.00016712,2]
[330436236,1719402650335,-500.0,0.00016712,2]
[330436237,1719402650345,-719.49,0.00016712,2]
[330436238,1719402650355,-2673.71,0.00016712,2]
[330436239,1719402650364,-11993.98,0.00016712,2]
[330436240,1719402650373,-500.0,0.00016712,2]
[330436241,1719402650383,-6283.86,0.00016712,2]
[330436242,1719402650392,-1476.33,0.00016712,2]
[330436243,1719402650402,-577.08,0.00016712,2]
[330436244,1719402650411,-651.53,0.00016712,2]
[330436245,1719402650422,-500.0,0.00016712,2]
[330436246,1719402650432,-525.02,0.00016712,2]
[330436247,1719402650442,-707.19,0.00016712,2]
[330436248,1719402650452,-1278.75,0.00016712,2]
[330436249,1719402650461,-500.0,0.00016712,2]
[330436250,1719402650471,-500.0,0.00016712,2]
[330436251,1719402650481,-4347.6,0.00016712,2]
[330436252,1719402650491,-1265.55,0.00016712,2]
[330436253,1719402650502,-500.0,0.00016712,2]
[330436254,1719402650511,-2476.57,0.00016712,2]
[330436255,1719402650520,-502.18851584,0.00016712,2]
[330436256,1719402650530,-286.07919048,0.00016712,2]
[330436257,1719402650539,-841.77,0.00016712,2]
[330436258,1719402650549,-4771.54,0.00016712,2]
[330436259,1719402650559,-2462.19,0.00016712,2]
[330436260,1719402650569,-749.03,0.00016712,2]
[330436261,1719402650578,-500.0,0.00016712,2]
[330436262,1719402650588,-1477.35,0.00016712,2]
[330436263,1719402650597,-500.0,0.00016712,2]
[330436264,1719402650607,-500.0,0.00016712,2]
[330436265,1719402650616,-500.0,0.00016712,2]
[330436266,1719402650626,-500.0,0.00016712,2]
[330436267,1719402650635,-1312.45,0.00016712,2]
[330436268,1719402650645,-873.55,0.00016712,2]
[330436269,1719402650654,-500.0,0.00016712,2]
[330436270,1719402650664,-875.85,0.00016712,2]
[330436271,1719402650674,-544.69,0.00016712,2]
[330436272,1719402650683,-5102.2,0.00016712,2]
[330436273,1719402650693,-509.25967667,0.00016712,2]
[330436274,1719402650702,-500.0,0.00016712,2]
[330436275,1719402650711,-500.0,0.00016712,2]
[330436276,1719402650721,-500.0,0.00016712,2]
[330436277,1719402650731,-500.0,0.00016712,2]
[330436278,1719402650745,-8168.68,0.00016712,2]
[330436279,1719402650755,-500.0,0.00016712,2]
[330436280,1719402650764,-1150.15,0.00016712,2]
[330436281,1719402650775,-719.59,0.00016712,2]
[330436282,1719402650784,-500.0,0.00016712,2]
[330436283,1719402650794,-706.8,0.00016799,2]
[330436284,1719402650804,-20000.0,0.000168,2]
[330436285,1719402650814,-5000.0,0.000169,2]
[330436286,1719402650826,-394.90145033,0.000169,2]
[330436287,1719402650836,-1000.0,0.0001691,2]
[330436288,1719402650845,-587.0,0.00016946,2]
[330436289,1719402650855,-706.8,0.00016958,2]
[330436290,1719402650865,-20000.0,0.00016959,2]
[330436291,1719402650874,-706.8,0.00016985,2]
[330436292,1719402650884,-706.8,0.00016985,2]
[330436293,1719402650894,-706.8,0.00016985,2]
[330436294,1719402650903,-706.8,0.00016985,2]
[330436295,1719402650913,-706.9544245,0.00016985,2]
[330436296,1719402650922,-584.91271432,0.00016986,2]
[330436297,1719402650932,-860.23,0.00016986,2]
[330436298,1719402650941,-1013.49,0.00016986,2]
[330436299,1719402650951,-12464.36,0.00016986,2]
[330436300,1719402650960,-500.0,0.00016986,2]
[330436301,1719402650969,-978.83,0.00016986,2]
[330436302,1719402650979,-500.0,0.00016986,2]
[330436303,1719402650988,-500.0,0.00016986,2]
[330436304,1719402650998,-500.0,0.00016986,2]
[330436305,1719402651008,-500.0,0.00016986,2]
[330436306,1719402651018,-3284.4,0.00016986,2]
[330436307,1719402651028,-500.0,0.00016986,2]
[330436308,1719402651037,-1002.28,0.00016986,2]
[330436309,1719402651047,-500.0,0.00016986,2]
[330436310,1719402651057,-500.0,0.00016986,2]
[330436311,1719402651067,-500.0,0.00016986,2]
[330436312,1719402651077,-500.0,0.00016986,2]
[330436313,1719402651087,-500.0,0.00016986,2]
[330436314,1719402651096,-742.27,0.00016986,2]
[330436315,1719402651106,-796.99,0.00016986,2]
[330436316,1719402651116,-845.9,0.00016986,2]
[330436317,1719402651126,-600.53,0.00016986,2]
[330436318,1719402651136,-500.0,0.00016986,2]
[330436319,1719402651146,-743.68,0.00016986,2]
[330436320,1719402651156,-500.0,0.00016986,2]
[330436321,1719402651166,-1361.98,0.00016986,2]
[330436322,1719402651175,-500.0,0.00016986,2]
[330436323,1719402651185,-500.0,0.00016986,2]
[330436324,1719402651194,-500.0,0.00016986,2]
[330436325,1719402651204,-500.0,0.00016986,2]
[330436326,1719402651213,-500.0,0.00016986,2]
[330436327,1719402651223,-583.45,0.00016986,2]
[330436328,1719402651233,-500.0,0.00016986,2]
[330436329,1719402651243,-986.71,0.00016986,2]
[330436330,1719402651253,-500.0,0.00016986,2]
[330436331,1719402651262,-1274.75,0.00016986,2]
[330436332,1719402651272,-500.0,0.00016986,2]
[330436333,1719402651282,-500.0,0.00016986,2]
[330436334,1719402651291,-500.0,0.00016986,2]
[330436335,1719402651301,-658.07,0.00016986,2]
[330436336,1719402651310,-500.0,0.00016986,2]
[330436337,1719402651320,-1250.86,0.00016986,2]
[330436338,1719402651330,-500.0,0.00016986,2]
[330436339,1719402651339,-783.65,0.00016986,2]
[330436340,1719402651349,-500.0,0.00016986,2]
[330436341,1719402651359,-531.03,0.00016986,2]
[330436342,1719402651368,-974.08,0.00016986,2]
[330436343,1719402651378,-500.0,0.00016986,2]
[330436344,1719402651388,-500.0,0.00016986,2]
[330436345,1719402651398,-508.78,0.00016986,2]
[330436346,1719402651408,-500.0,0.00016986,2]
[330436347,1719402651453,-500.0,0.00016986,2]
[330436348,1719402651463,-500.0,0.00016986,2]
[330436349,1719402651473,-1012.16,0.00016986,2]
[330436350,1719402651482,-2862.69,0.00016986,2]
[330436351,1719402651491,-500.0,0.00016986,2]
[330436352,1719402651501,-500.0,0.00016986,2]
[330436353,1719402651511,-1136.97,0.00016986,2]
[330436354,1719402651520,-500.0,0.00016986,2]
[330436355,1719402651530,-1084.19,0.00016986,2]
[330436356,1719402651539,-500.0,0.00016986,2]
[330436357,1719402651548,-500.0,0.00016986,2]
[330436358,1719402651558,-678.53,0.00016986,2]
[330436359,1719402651568,-500.0,0.00016986,2]
[330436360,1719402651577,-150.86194095,0.00016986,2]
[330436361,1719402651588,-560.68,0.00016986,2]
[330436362,1719402651597,-500.0,0.00016986,2]
[330436363,1719402651607,-645.3,0.00016986,2]
[330436364,1719402651616,-812.54,0.00016986,2]
[330436365,1719402651626,-193.5,0.00016986,2]
[330436366,1719402651635,-500.0,0.00016986,2]
[330436367,1719402651645,-500.0,0.00016986,2]
[330436368,1719402651655,-2859.63,0.00016986,2]
[330436369,1719402651664,-1390.74,0.00016986,2]
[330436370,1719402651673,-524.14,0.00016986,2]
[330436371,1719402651683,-5402.31,0.00016986,2]
[330436372,1719402651692,-1480.8,0.00016986,2]
[330436373,1719402651701,-500.0,0.00016986,2]
[330436374,1719402651711,-500.0,0.00016986,2]
[330436375,1719402651720,-702.37,0.00016986,2]
[330436376,1719402651732,-2281.43,0.00016986,2]
[330436377,1719402651744,-12137.58,0.00016986,2]
[330436378,1719402651753,-186.9116121,0.00016986,2]
[330436379,1719402651763,-500.0,0.00016986,2]
[330436380,1719402651772,-4396.45,0.00016986,2]
[330436381,1719402651782,-1713.01,0.00016986,2]
[330436382,1719402651792,-500.0,0.00016986,2]
[330436383,1719402651801,-719.49,0.00016986,2]
[330436384,1719402651810,-2673.71,0.00016986,2]
[330436385,1719402651820,-11993.98,0.00016986,2]
[330436386,1719402651830,-500.0,0.00016986,2]
[330436387,1719402651839,-6283.86,0.00016986,2]
[330436388,1719402651849,-1476.33,0.00016986,2]
[330436389,1719402651858,-577.08,0.00016986,2]
[330436390,1719402651867,-651.53,0.00016986,2]
[330436391,1719402651876,-500.0,0.00016986,2]
[330436392,1719402651886,-525.02,0.00016986,2]
[330436393,1719402651896,-707.19,0.00016986,2]
[330436394,1719402651906,-1278.75,0.00016986,2]
[330436395,1719402651916,-500.0,0.00016986,2]
[330436396,1719402651926,-500.0,0.00016986,2]
[330436397,1719402651936,-4347.6,0.00016986,2]
[330436398,1719402651945,-1265.55,0.00016986,2]
[330436399,1719402651954,-500.0,0.00016986,2]
[330436400,1719402651964,-2476.57,0.00016986,2]
[330436401,1719402651973,-841.77,0.00016986,2]
[330436402,1719402651983,-4771.54,0.00016986,2]
[330436403,1719402651993,-749.03,0.00016986,2]
[330436404,1719402652002,-2462.19,0.00016986,2]
[330436405,1719402652011,-500.0,0.00016986,2]
[330436406,1719402652020,-1477.35,0.00016986,2]
[330436407,1719402652029,-500.0,0.00016986,2]
[330436408,1719402652039,-500.0,0.00016986,2]
[330436409,1719402652048,-500.0,0.00016986,2]
[330436410,1719402652057,-500.0,0.00016986,2]
[330436411,1719402652067,-1312.45,0.00016986,2]
[330436412,1719402652075,-873.55,0.00016986,2]
[330436413,1719402652084,-500.0,0.00016986,2]
[330436414,1719402652094,-875.85,0.00016986,2]
[330436415,1719402652106,-544.69,0.00016986,2]
[330436416,1719402652117,-5102.2,0.00016986,2]
[330436417,1719402652129,-500.0,0.00016986,2]
[330436418,1719402652143,-500.0,0.00016986,2]
[330436419,1719402652154,-500.0,0.00016986,2]
[330436420,1719402652165,-8168.68,0.00016986,2]
[330436421,1719402652175,-500.0,0.00016986,2]
[330436422,1719402652187,-1150.15,0.00016986,2]
[330436423,1719402652197,-719.59,0.00016986,2]
[330436424,1719402652206,-500.0,0.00016986,2]
[330436425,1719402652216,-11988.2423,0.00017,2]
[330436426,1719402652226,-1000.0,0.00017,6]
[330436427,1719402652236,-5000.0,0.00017,3]
[330436428,1719402652246,-860.23,0.0001726,2]
[330436429,1719402652256,-1013.49,0.0001726,2]
[330436430,1719402652265,-12464.36,0.0001726,2]
[330436431,1719402652275,-500.0,0.0001726,2]
[330436432,1719402652287,-978.83,0.0001726,2]
[330436433,1719402652298,-553.21640892,0.0001726,2]
[330436434,1719402652307,-500.0,0.0001726,2]
[330436435,1719402652317,-500.0,0.0001726,2]
[330436436,1719402652327,-500.0,0.0001726,2]
[330436437,1719402652336,-3284.4,0.0001726,2]
[330436438,1719402652347,-500.0,0.0001726,2]
[330436439,1719402652357,-1002.28,0.0001726,2]
[330436440,1719402652366,-500.0,0.0001726,2]
[330436441,1719402652376,-500.0,0.0001726,2]
[330436442,1719402652385,-584.07403904,0.0001726,2]
[330436443,1719402652395,-500.0,0.0001726,2]
[330436444,1719402652404,-500.0,0.0001726,2]
[330436445,1719402652413,-742.27,0.0001726,2]
[330436446,1719402652423,-796.99,0.0001726,2]
[330436447,1719402652432,-845.9,0.0001726,2]
[330436448,1719402652442,-600.53,0.0001726,2]
[330436449,1719402652451,-500.0,0.0001726,2]
[330436450,1719402652460,-743.68,0.0001726,2]
[330436451,1719402652469,-500.0,0.0001726,2]
[330436452,1719402652480,-1361.98,0.0001726,2]
[330436453,1719402652491,-500.0,0.0001726,2]
[330436454,1719402652501,-500.0,0.0001726,2]
[330436455,1719402652510,-254.60717722,0.0001726,2]
[330436456,1719402652520,-500.0,0.0001726,2]
[330436457,1719402652529,-500.0,0.0001726,2]
[330436458,1719402652538,-583.45,0.0001726,2]
[330436459,1719402652548,-492.04714721,0.0001726,2]
[330436460,1719402652557,-986.71,0.0001726,2]
[330436461,1719402652566,-500.0,0.0001726,2]
[330436462,1719402652576,-1274.75,0.0001726,2]
[330436463,1719402652585,-500.0,0.0001726,2]
[330436464,1719402652594,-500.0,0.0001726,2]
[330436465,1719402652603,-500.0,0.0001726,2]
[330436466,1719402652613,-658.07,0.0001726,2]
[330436467,1719402652623,-500.0,0.0001726,2]
[330436468,1719402652632,-1250.86,0.0001726,2]
[330436469,1719402652641,-500.0,0.0001726,2]
[330436470,1719402652651,-783.65,0.0001726,2]
[330436471,1719402652662,-500.0,0.0001726,2]
[330436472,1719402652672,-531.03,0.0001726,2]
[330436473,1719402652684,-974.08,0.0001726,2]
[330436474,1719402652693,-500.0,0.0001726,2]
[330436475,1719402652705,-500.0,0.0001726,2]
[330436476,1719402652716,-508.78,0.0001726,2]
[330436477,1719402652726,-500.0,0.0001726,2]
[330436478,1719402652737,-500.0,0.0001726,2]
[330436479,1719402652750,-500.0,0.0001726,2]
[330436480,1719402652760,-1012.16,0.0001726,2]
[330436481,1719402652769,-2862.69,0.0001726,2]
[330436482,1719402652779,-500.0,0.0001726,2]
[330436483,1719402652790,-500.0,0.0001726,2]
[330436484,1719402652800,-1136.97,0.0001726,2]
[330436485,1719402652811,-500.0,0.0001726,2]
[330436486,1719402652821,-1084.19,0.0001726,2]
[330436487,1719402652832,-500.0,0.0001726,2]
[330436488,1719402652841,-678.53,0.0001726,2]
[330436489,1719402652851,-500.0,0.0001726,2]
[330436490,1719402652860,-560.68,0.0001726,2]
[330436491,1719402652870,-500.0,0.0001726,2]
[330436492,1719402652879,-645.3,0.0001726,2]
[330436493,1719402652889,-812.54,0.0001726,2]
[330436494,1719402652898,-193.5,0.0001726,2]
[330436495,1719402652909,-500.0,0.0001726,2]
[330436496,1719402652918,-500.0,0.0001726,2]
[330436497,1719402652928,-2859.63,0.0001726,2]
[330436498,1719402652937,-1390.74,0.0001726,2]
[330436499,1719402652947,-524.14,0.0001726,2]
[330436500,1719402652956,-5402.31,0.0001726,2]
[330436501,1719402652966,-1480.8,0.0001726,2]
[330436502,1719402652976,-500.0,0.0001726,2]
[330436503,1719402652986,-500.0,0.0001726,2]
[330436504,1719402652996,-702.37,0.0001726,2]
[330436505,1719402653008,-2281.43,0.0001726,2]
[330436506,1719402653018,-12137.58,0.0001726,2]
[330436507,1719402653028,-500.0,0.0001726,2]
[330436508,1719402653038,-4396.45,0.0001726,2]
[330436509,1719402653048,-1713.01,0.0001726,2]
[330436510,1719402653059,-500.0,0.0001726,2]
[330436511,1719402653068,-719.49,0.0001726,2]
[330436512,1719402653078,-2673.71,0.0001726,2]
[330436513,1719402653087,-11993.98,0.0001726,2]
[330436514,1719402653097,-500.0,0.0001726,2]
[330436515,1719402653106,-6283.86,0.0001726,2]
[330436516,1719402653115,-1476.33,0.0001726,2]
[330436517,1719402653125,-577.08,0.0001726,2]
[330436518,1719402653134,-651.53,0.0001726,2]
[330436519,1719402653144,-528.29134668,0.0001726,2]
[330436520,1719402653153,-525.02,0.0001726,2]
[330436521,1719402653163,-707.19,0.0001726,2]
[330436522,1719402653172,-1278.75,0.0001726,2]
[330436523,1719402653181,-500.0,0.0001726,2]
[330436524,1719402653191,-500.0,0.0001726,2]
[330436525,1719402653200,-4347.6,0.0001726,2]
[330436526,1719402653210,-1265.55,0.0001726,2]
[330436527,1719402653219,-500.0,0.0001726,2]
[330436528,1719402653229,-2476.57,0.0001726,2]
[330436529,1719402653238,-841.77,0.0001726,2]
[330436530,1719402653248,-4771.54,0.0001726,2]
[330436531,1719402653257,-749.03,0.0001726,2]
[330436532,1719402653266,-2462.19,0.0001726,2]
[330436533,1719402653275,-500.0,0.0001726,2]
[330436534,1719402653284,-1477.35,0.0001726,2]
[330436535,1719402653293,-500.0,0.0001726,2]
[330436536,1719402653302,-500.0,0.0001726,2]
[330436537,1719402653311,-397.73334075,0.0001726,2]
[330436538,1719402653320,-437.41638675,0.0001726,2]
[330436539,1719402653329,-1312.45,0.0001726,2]
[330436540,1719402653338,-873.55,0.0001726,2]
[330436541,1719402653347,-500.0,0.0001726,2]
[330436542,1719402653356,-875.85,0.0001726,2]
[330436543,1719402653365,-544.69,0.0001726,2]
[330436544,1719402653375,-5102.2,0.0001726,2]
[330436545,1719402653384,-500.0,0.0001726,2]
[330436546,1719402653393,-168.51045701,0.0001726,2]
[330436547,1719402653402,-592.0339122,0.0001726,2]
[330436548,1719402653411,-500.0,0.0001726,2]
[330436549,1719402653420,-8168.68,0.0001726,2]
[330436550,1719402653429,-1150.15,0.0001726,2]
[330436551,1719402653438,-719.59,0.0001726,2]
[330436552,1719402653447,-500.0,0.0001726,2]
[330436553,1719402653456,-150.0,0.0001745,2]
[330436554,1719402653465,-860.23,0.00017534,2]
[330436555,1719402653474,-1013.49,0.00017534,2]
[330436556,1719402653484,-12464.36,0.00017534,2]
[330436557,1719402653493,-500.0,0.00017534,2]
[330436558,1719402653502,-978.83,0.00017534,2]
[330436559,1719402653511,-500.0,0.00017534,2]
[330436560,1719402653520,-500.0,0.00017534,2]
[330436561,1719402653529,-3284.4,0.00017534,2]
[330436562,1719402653537,-500.0,0.00017534,2]
[330436563,1719402653546,-1002.28,0.00017534,2]
[330436564,1719402653555,-502.08566139,0.00017534,2]
[330436565,1719402653565,-500.0,0.00017534,2]
[330436566,1719402653574,-500.0,0.00017534,2]
[330436567,1719402653583,-503.09830792,0.00017534,2]
[330436568,1719402653592,-742.27,0.00017534,2]
[330436569,1719402653601,-796.99,0.00017534,2]
[330436570,1719402653610,-845.9,0.00017534,2]
[330436571,1719402653619,-600.53,0.00017534,2]
[330436572,1719402653628,-500.0,0.00017534,2]
[330436573,1719402653637,-743.68,0.00017534,2]
[330436574,1719402653646,-500.0,0.00017534,2]
[330436575,1719402653655,-1361.98,0.00017534,2]
[330436576,1719402653664,-500.0,0.00017534,2]
[330436577,1719402653673,-500.0,0.00017534,2]
[330436578,1719402653682,-223.49835335,0.00017534,2]
[330436579,1719402653691,-500.0,0.00017534,2]
[330436580,1719402653701,-583.45,0.00017534,2]
[330436581,1719402653710,-986.71,0.00017534,2]
[330436582,1719402653719,-500.0,0.00017534,2]
[330436583,1719402653729,-1274.75,0.00017534,2]
[330436584,1719402653741,-500.0,0.00017534,2]
[330436585,1719402653751,-500.0,0.00017534,2]
[330436586,1719402653760,-500.0,0.00017534,2]
[330436587,1719402653769,-658.07,0.00017534,2]
[330436588,1719402653778,-500.0,0.00017534,2]
[330436589,1719402653789,-1250.86,0.00017534,2]
[330436590,1719402653798,-500.0,0.00017534,2]
[330436591,1719402653807,-783.65,0.00017534,2]
[330436592,1719402653818,-500.0,0.00017534,2]
[330436593,1719402653828,-531.03,0.00017534,2]
[330436594,1719402653837,-974.08,0.00017534,2]
[330436595,1719402653847,-500.0,0.00017534,2]
[330436596,1719402653856,-500.0,0.00017534,2]
[330436597,1719402653866,-508.78,0.00017534,2]
[330436598,1719402653876,-500.0,0.00017534,2]
[330436599,1719402653887,-500.0,0.00017534,2]
[330436600,1719402653896,-500.0,0.00017534,2]
[330436601,1719402653905,-1012.16,0.00017534,2]
[330436602,1719402653915,-2862.69,0.00017534,2]
[330436603,1719402653925,-500.0,0.00017534,2]
[330436604,1719402653934,-500.0,0.00017534,2]
[330436605,1719402653943,-1136.97,0.00017534,2]
[330436606,1719402653953,-500.0,0.00017534,2]
[330436607,1719402653963,-1084.19,0.00017534,2]
[330436608,1719402653972,-500.0,0.00017534,2]
[330436609,1719402653982,-678.53,0.00017534,2]
[330436610,1719402653991,-214.09989973,0.00017534,2]
[330436611,1719402654000,-560.68,0.00017534,2]
[330436612,1719402654010,-500.0,0.00017534,2]
[330436613,1719402654018,-645.3,0.00017534,2]
[330436614,1719402654028,-812.54,0.00017534,2]
[330436615,1719402654037,-193.5,0.00017534,2]
[330436616,1719402654046,-500.0,0.00017534,2]
[330436617,1719402654055,-500.0,0.00017534,2]
[330436618,1719402654064,-2859.63,0.00017534,2]
[330436619,1719402654074,-1390.74,0.00017534,2]
[330436620,1719402654083,-524.14,0.00017534,2]
[330436621,1719402654092,-5402.31,0.00017534,2]
[330436622,1719402654102,-1480.8,0.00017534,2]
[330436623,1719402654111,-500.0,0.00017534,2]
[330436624,1719402654120,-500.0,0.00017534,2]
[330436625,1719402654129,-702.37,0.00017534,2]
[330436626,1719402654140,-2281.43,0.00017534,2]
[330436627,1719402654149,-12137.58,0.00017534,2]
[330436628,1719402654159,-500.0,0.00017534,2]
[330436629,1719402654169,-4396.45,0.00017534,2]
[330436630,1719402654178,-1713.01,0.00017534,2]
[330436631,1719402654188,-500.0,0.00017534,2]
[330436632,1719402654198,-719.49,0.00017534,2]
[330436633,1719402654208,-2673.71,0.00017534,2]
[330436634,1719402654218,-11993.98,0.00017534,2]
[330436635,1719402654228,-500.0,0.00017534,2]
[330436636,1719402654237,-6283.86,0.00017534,2]
[330436637,1719402654247,-1476.33,0.00017534,2]
[330436638,1719402654256,-577.08,0.00017534,2]
[330436639,1719402654266,-651.53,0.00017534,2]
[330436640,1719402654276,-525.02,0.00017534,2]
[330436641,1719402654390,-707.19,0.00017534,2]
[330436642,1719402654400,-1278.75,0.00017534,2]
[330436643,1719402654410,-500.0,0.00017534,2]
[330436644,1719402654419,-500.0,0.00017534,2]
[330436645,1719402654428,-4347.6,0.00017534,2]
[330436646,1719402654438,-1265.55,0.00017534,2]
[330436647,1719402654447,-500.0,0.00017534,2]
[330436648,1719402654456,-2476.57,0.00017534,2]
[330436649,1719402654465,-841.77,0.00017534,2]
[330436650,1719402654475,-4771.54,0.00017534,2]
[330436651,1719402654485,-749.03,0.00017534,2]
[330436652,1719402654496,-2462.19,0.00017534,2]
[330436653,1719402654506,-500.0,0.00017534,2]
[330436654,1719402654515,-1477.35,0.00017534,2]
[330436655,1719402654525,-500.0,0.00017534,2]
[330436656,1719402654535,-500.0,0.00017534,2]
[330436657,1719402654545,-1312.45,0.00017534,2]
[330436658,1719402654554,-873.55,0.00017534,2]
[330436659,1719402654563,-618.89352346,0.00017534,2]
[330436660,1719402654572,-875.85,0.00017534,2]
[330436661,1719402654582,-544.69,0.00017534,2]
[330436662,1719402654591,-5102.2,0.00017534,2]
[330436663,1719402654600,-500.0,0.00017534,2]
[330436664,1719402654610,-500.0,0.00017534,2]
[330436665,1719402654619,-8168.68,0.00017534,2]
[330436666,1719402654628,-1150.15,0.00017534,2]
[330436667,1719402654637,-719.59,0.00017534,2]
[330436668,1719402654646,-500.0,0.00017534,2]
[330436669,1719402654656,-155.0,0.0001754,2]
[330436670,1719402654665,-150.0,0.000177,2]
[330436671,1719402654674,-860.23,0.00017808,2]
[330436672,1719402654683,-1013.49,0.00017808,2]
[330436673,1719402654693,-12464.36,0.00017808,2]
[330436674,1719402654702,-500.0,0.00017808,2]
[330436675,1719402654711,-978.83,0.00017808,2]
[330436676,1719402654721,-500.0,0.00017808,2]
[330436677,1719402654732,-500.0,0.00017808,2]
[330436678,1719402654745,-3284.4,0.00017808,2]
[330436679,1719402654754,-500.0,0.00017808,2]
[330436680,1719402654764,-1002.28,0.00017808,2]
[330436681,1719402654775,-500.0,0.00017808,2]
[330436682,1719402654784,-500.0,0.00017808,2]
[330436683,1719402654793,-742.27,0.00017808,2]
[330436684,1719402654803,-796.99,0.00017808,2]
[330436685,1719402654812,-845.9,0.00017808,2]
[330436686,1719402654824,-600.53,0.00017808,2]
[330436687,1719402654834,-500.0,0.00017808,2]
[330436688,1719402654844,-743.68,0.00017808,2]
[330436689,1719402654854,-500.0,0.00017808,2]
[330436690,1719402654863,-1361.98,0.00017808,2]
[330436691,1719402654872,-500.0,0.00017808,2]
[330436692,1719402654882,-500.0,0.00017808,2]
[330436693,1719402654892,-500.0,0.00017808,2]
[330436694,1719402654901,-583.45,0.00017808,2]
[330436695,1719402654912,-986.71,0.00017808,2]
[330436696,1719402654921,-500.0,0.00017808,2]
[330436697,1719402654931,-1274.75,0.00017808,2]
[330436698,1719402654941,-500.0,0.00017808,2]
[330436699,1719402654950,-500.0,0.00017808,2]
[330436700,1719402654959,-500.0,0.00017808,2]
[330436701,1719402654968,-658.07,0.00017808,2]
[330436702,1719402654977,-500.0,0.00017808,2]
[330436703,1719402654986,-1250.86,0.00017808,2]
[330436704,1719402654995,-555.17431937,0.00017808,2]
[330436705,1719402655004,-783.65,0.00017808,2]
[330436706,1719402655013,-500.0,0.00017808,2]
[330436707,1719402655022,-531.03,0.00017808,2]
[330436708,1719402655031,-974.08,0.00017808,2]
[330436709,1719402655040,-500.0,0.00017808,2]
[330436710,1719402655050,-500.0,0.00017808,2]